[Event "Early-Titled-Tuesday-Blitz-June-18-2024"]
[Site "Chess.com"]
[Date "2024.06.18"]
[Round "9"]
[White "SaraBlackPanther"]
[Black "savitha1030"]
[Result "1-0"]
[WhiteElo "2714"]
[BlackElo "2579"]
[TimeControl "180+1"]
[EndTime "9:48:19 PDT"]
[Termination "SaraBlackPanther won on time"]

1. d4 {[%clk 0:03:00.9]} 1... Nf6 {[%clk 0:02:56.6]} 2. c4 {[%clk 0:03:00.7]}
2... e6 {[%clk 0:02:56.7]} 3. Nf3 {[%clk 0:02:57]} 3... d5 {[%clk 0:02:57.2]} 4.
Nc3 {[%clk 0:02:56.4]} 4... Nbd7 {[%clk 0:02:57.8]} 5. cxd5 {[%clk 0:02:51.3]}
5... exd5 {[%clk 0:02:57.5]} 6. Bg5 {[%clk 0:02:51.2]} 6... c6 {[%clk
0:02:56.2]} 7. e3 {[%clk 0:02:50.5]} 7... h6 {[%clk 0:02:56.8]} 8. Bh4 {[%clk
0:02:46.1]} 8... Bd6 {[%clk 0:02:57.1]} 9. Bd3 {[%clk 0:02:43.3]} 9... O-O
{[%clk 0:02:56.6]} 10. Qc2 {[%clk 0:02:38.8]} 10... a5 {[%clk 0:02:44.6]} 11.
O-O {[%clk 0:02:35.3]} 11... Re8 {[%clk 0:02:42.7]} 12. Rfe1 {[%clk 0:02:32.1]}
12... Bb4 {[%clk 0:02:39.4]} 13. a3 {[%clk 0:02:29]} 13... Be7 {[%clk
0:02:39.1]} 14. h3 {[%clk 0:02:25.8]} 14... Ne4 {[%clk 0:02:28]} 15. Bxe7 {[%clk
0:02:21.8]} 15... Qxe7 {[%clk 0:02:26.7]} 16. Rab1 {[%clk 0:02:10.9]} 16... f5
{[%clk 0:02:06.4]} 17. b4 {[%clk 0:02:08.2]} 17... axb4 {[%clk 0:02:06.6]} 18.
axb4 {[%clk 0:02:09.1]} 18... Ra3 {[%clk 0:02:05.2]} 19. Ne2 {[%clk 0:02:06.9]}
19... Nxf2 {[%clk 0:01:55.9]} 20. Bxf5 {[%clk 0:02:02.1]} 20... Ne4 {[%clk
0:01:28.5]} 21. Nf4 {[%clk 0:01:58.4]} 21... Rc3 {[%clk 0:01:21.6]} 22. Qa2
{[%clk 0:01:53.5]} 22... Ng3 {[%clk 0:01:18.8]} 23. Bxd7 {[%clk 0:01:48.9]}
23... Bxd7 {[%clk 0:01:19.7]} 24. Ne5 {[%clk 0:01:49.2]} 24... Ne4 {[%clk
0:01:07.8]} 25. Nxd5 {[%clk 0:01:45.5]} 25... Qe6 {[%clk 0:01:01.9]} 26. Nxc3
{[%clk 0:01:45.3]} 26... Nxc3 {[%clk 0:00:56.6]} 27. Qxe6+ {[%clk 0:01:45]}
27... Bxe6 {[%clk 0:00:57.5]} 28. Ra1 {[%clk 0:01:44.7]} 28... Nd5 {[%clk
0:00:55.8]} 29. Ra7 {[%clk 0:01:41.6]} 29... Rb8 {[%clk 0:00:45.4]} 30. Rea1
{[%clk 0:01:38.4]} 30... Nxb4 {[%clk 0:00:41.4]} 31. Ra8 {[%clk 0:01:33.2]}
31... Rxa8 {[%clk 0:00:41.8]} 32. Rxa8+ {[%clk 0:01:33.7]} 32... Kh7 {[%clk
0:00:42.4]} 33. Rb8 {[%clk 0:01:34.2]} 33... b5 {[%clk 0:00:42.2]} 34. Kf2
{[%clk 0:01:30]} 34... Bd5 {[%clk 0:00:42.7]} 35. Rc8 {[%clk 0:01:25.2]} 35...
Be6 {[%clk 0:00:35.5]} 36. Rc7 {[%clk 0:01:24.1]} 36... Bd5 {[%clk 0:00:36.1]}
37. g4 {[%clk 0:01:23.7]} 37... Na6 {[%clk 0:00:34.5]} 38. Rc8 {[%clk
0:01:21.2]} 38... b4 {[%clk 0:00:32]} 39. Nxc6 {[%clk 0:01:12.3]} 39... b3
{[%clk 0:00:32.2]} 40. Nb4 {[%clk 0:00:24.9]} 40... Nxb4 {[%clk 0:00:32.3]} 41.
Rb8 {[%clk 0:00:23.8]} 41... Nd3+ {[%clk 0:00:32.9]} 42. Ke2 {[%clk 0:00:22.6]}
42... Be4 {[%clk 0:00:32.7]} 43. d5 {[%clk 0:00:18.8]} 43... b2 {[%clk
0:00:31.4]} 44. d6 {[%clk 0:00:17.8]} 44... Ne5 {[%clk 0:00:07.7]} 45. Rxb2
{[%clk 0:00:17.3]} 45... Nc4 {[%clk 0:00:08.4]} 46. Rb4 {[%clk 0:00:16.4]} 46...
Nxd6 {[%clk 0:00:05.4]} 47. Rd4 {[%clk 0:00:17]} 47... Bg2 {[%clk 0:00:05.8]}
48. Rxd6 {[%clk 0:00:16.9]} 48... Bxh3 {[%clk 0:00:06.5]} 49. Kf3 {[%clk
0:00:17.5]} 49... Bf1 {[%clk 0:00:07.1]} 50. e4 {[%clk 0:00:17.2]} 50... Bc4
{[%clk 0:00:07.1]} 51. e5 {[%clk 0:00:17.4]} 51... Kg8 {[%clk 0:00:07.9]} 52.
Ke4 {[%clk 0:00:17.3]} 52... Kf7 {[%clk 0:00:08.1]} 53. Rd7+ {[%clk 0:00:17.4]}
53... Kg6 {[%clk 0:00:08.1]} 54. Kf4 {[%clk 0:00:17.2]} 54... Be6 {[%clk
0:00:07.7]} 55. Re7 {[%clk 0:00:17.1]} 55... Bc4 {[%clk 0:00:07.4]} 56. Rc7
{[%clk 0:00:16.8]} 56... Be6 {[%clk 0:00:07.5]} 57. Rc6 {[%clk 0:00:17.1]} 57...
Kf7 {[%clk 0:00:08]} 58. g5 {[%clk 0:00:16.9]} 58... hxg5+ {[%clk 0:00:08.6]}
59. Kxg5 {[%clk 0:00:17.6]} 59... Ba2 {[%clk 0:00:07.2]} 60. Ra6 {[%clk
0:00:17.2]} 60... Bb3 {[%clk 0:00:06.9]} 61. Kf5 {[%clk 0:00:15]} 61... Bc2+
{[%clk 0:00:06.9]} 62. Kf4 {[%clk 0:00:14.9]} 62... Bb3 {[%clk 0:00:07.1]} 63.
Ke3 {[%clk 0:00:14.8]} 63... Bc4 {[%clk 0:00:06.1]} 64. Rb6 {[%clk 0:00:13.6]}
64... Be6 {[%clk 0:00:03.4]} 65. Kd4 {[%clk 0:00:14.2]} 65... g5 {[%clk
0:00:03.2]} 66. Kc5 {[%clk 0:00:13.9]} 66... g4 {[%clk 0:00:03.8]} 67. Kd6
{[%clk 0:00:14.2]} 67... Bf5 {[%clk 0:00:03.1]} 68. Rb7+ {[%clk 0:00:12.5]}
68... Kg6 {[%clk 0:00:03]} 69. e6 {[%clk 0:00:06.9]} 69... g3 {[%clk 0:00:03.2]}
70. e7 {[%clk 0:00:06.6]} 70... Kf7 {[%clk 0:00:02.1]} 71. Rb8 {[%clk
0:00:06.5]} 1-0

[Event "Early-Titled-Tuesday-Blitz-June-18-2024"]
[Site "Chess.com"]
[Date "2024.06.18"]
[Round "9"]
[White "aeiiuu"]
[Black "artooon"]
[Result "1/2-1/2"]
[WhiteElo "2645"]
[BlackElo "3088"]
[TimeControl "180+1"]
[EndTime "9:48:33 PDT"]
[Termination "Game drawn - insufficient material"]

1. e4 {[%clk 0:03:00.9]} 1... e5 {[%clk 0:02:59.8]} 2. Nf3 {[%clk 0:03:01.1]}
2... Nc6 {[%clk 0:03:00]} 3. Bb5 {[%clk 0:03:01.4]} 3... a6 {[%clk 0:03:00.2]}
4. Ba4 {[%clk 0:03:01.9]} 4... Nf6 {[%clk 0:03:00.5]} 5. O-O {[%clk 0:03:02.3]}
5... d6 {[%clk 0:02:58.3]} 6. Re1 {[%clk 0:02:55.3]} 6... Bd7 {[%clk 0:02:55.1]}
7. c3 {[%clk 0:02:55.4]} 7... g6 {[%clk 0:02:54]} 8. d4 {[%clk 0:02:55.6]} 8...
Bg7 {[%clk 0:02:54.9]} 9. d5 {[%clk 0:02:53]} 9... Ne7 {[%clk 0:02:54.4]} 10. c4
{[%clk 0:02:53.5]} 10... O-O {[%clk 0:02:54.5]} 11. Bxd7 {[%clk 0:02:49.9]}
11... Nxd7 {[%clk 0:02:55.4]} 12. Nc3 {[%clk 0:02:50.8]} 12... h6 {[%clk
0:02:55.5]} 13. b4 {[%clk 0:02:49.3]} 13... f5 {[%clk 0:02:55.2]} 14. a3 {[%clk
0:02:47.3]} 14... b6 {[%clk 0:02:54]} 15. Nd2 {[%clk 0:02:32.2]} 15... Nf6
{[%clk 0:02:49.8]} 16. f3 {[%clk 0:02:31.6]} 16... g5 {[%clk 0:02:49.5]} 17.
exf5 {[%clk 0:02:25.2]} 17... Nxf5 {[%clk 0:02:50.4]} 18. Nde4 {[%clk
0:02:26.1]} 18... Nd4 {[%clk 0:02:41.1]} 19. Be3 {[%clk 0:02:23.3]} 19... Nh5
{[%clk 0:02:40.8]} 20. Ne2 {[%clk 0:02:14.5]} 20... Nf5 {[%clk 0:02:38.4]} 21.
N2g3 {[%clk 0:02:14.4]} 21... Nxe3 {[%clk 0:02:35.5]} 22. Rxe3 {[%clk
0:02:12.3]} 22... Nf4 {[%clk 0:02:36.1]} 23. Qd2 {[%clk 0:01:56.7]} 23... h5
{[%clk 0:02:35.8]} 24. Ne2 {[%clk 0:01:53]} 24... Kh8 {[%clk 0:02:18.1]} 25. Rd1
{[%clk 0:01:50.6]} 25... Bh6 {[%clk 0:02:16.9]} 26. Nxf4 {[%clk 0:01:45.4]}
26... Rxf4 {[%clk 0:02:17.8]} 27. c5 {[%clk 0:01:34.2]} 27... bxc5 {[%clk
0:02:17]} 28. bxc5 {[%clk 0:01:32.9]} 28... g4 {[%clk 0:02:17.6]} 29. cxd6
{[%clk 0:01:29.1]} 29... cxd6 {[%clk 0:02:18.5]} 30. Rb3 {[%clk 0:00:51.7]}
30... gxf3 {[%clk 0:02:05.7]} 31. Rxf3 {[%clk 0:00:50.3]} 31... Qb6+ {[%clk
0:02:04.4]} 32. Kh1 {[%clk 0:00:50.4]} 32... Raf8 {[%clk 0:01:55.4]} 33. Rxf4
{[%clk 0:00:37.1]} 33... Rxf4 {[%clk 0:01:51.3]} 34. Qe2 {[%clk 0:00:37.8]}
34... h4 {[%clk 0:00:57.5]} 35. g3 {[%clk 0:00:22.2]} 35... Rf8 {[%clk
0:00:44.9]} 36. gxh4 {[%clk 0:00:15.7]} 36... Qb3 {[%clk 0:00:29]} 37. Rf1
{[%clk 0:00:14.3]} 37... Qxd5 {[%clk 0:00:24.8]} 38. Rxf8+ {[%clk 0:00:14.3]}
38... Bxf8 {[%clk 0:00:25.7]} 39. Qh5+ {[%clk 0:00:14.9]} 39... Kg7 {[%clk
0:00:25.4]} 40. Qf3 {[%clk 0:00:14.1]} 40... Qf7 {[%clk 0:00:22.9]} 41. Qg4+
{[%clk 0:00:12.5]} 41... Qg6 {[%clk 0:00:23.4]} 42. Qd7+ {[%clk 0:00:12.9]}
42... Qf7 {[%clk 0:00:23.8]} 43. Qg4+ {[%clk 0:00:12.5]} 43... Qg6 {[%clk
0:00:22.7]} 44. Qd7+ {[%clk 0:00:13.2]} 44... Kh6 {[%clk 0:00:23.3]} 45. Ng5
{[%clk 0:00:12.7]} 45... Bg7 {[%clk 0:00:20.4]} 46. Qxd6 {[%clk 0:00:11.4]}
46... Qxd6 {[%clk 0:00:20.8]} 47. Nf7+ {[%clk 0:00:11.8]} 47... Kh5 {[%clk
0:00:16.6]} 48. Nxd6 {[%clk 0:00:12.7]} 48... Bf8 {[%clk 0:00:17.2]} 49. Nc4
{[%clk 0:00:11.1]} 49... e4 {[%clk 0:00:17.3]} 50. Kg2 {[%clk 0:00:11]} 50...
Kxh4 {[%clk 0:00:17.4]} 51. Kf2 {[%clk 0:00:11.5]} 51... Bc5+ {[%clk 0:00:17.9]}
52. Ke2 {[%clk 0:00:12.2]} 52... Kg4 {[%clk 0:00:17.9]} 53. a4 {[%clk
0:00:12.2]} 53... Kf4 {[%clk 0:00:18.1]} 54. Nd2 {[%clk 0:00:11.5]} 54... Be7
{[%clk 0:00:17.5]} 55. Nb3 {[%clk 0:00:11.9]} 55... Ke5 {[%clk 0:00:17.5]} 56.
Ke3 {[%clk 0:00:11.7]} 56... Kd5 {[%clk 0:00:16.7]} 57. h3 {[%clk 0:00:10.9]}
57... Bg5+ {[%clk 0:00:16]} 58. Ke2 {[%clk 0:00:11.5]} 58... Kc4 {[%clk
0:00:16.5]} 59. Nd2+ {[%clk 0:00:12]} 59... Kd5 {[%clk 0:00:15.5]} 60. Nb3
{[%clk 0:00:12.5]} 60... Kc4 {[%clk 0:00:16]} 61. Nd2+ {[%clk 0:00:13.1]} 61...
Kd4 {[%clk 0:00:16.6]} 62. Nb3+ {[%clk 0:00:13.6]} 62... Ke5 {[%clk 0:00:14.3]}
63. Nc5 {[%clk 0:00:13.8]} 63... a5 {[%clk 0:00:14.9]} 64. Nb3 {[%clk
0:00:13.1]} 64... Bd8 {[%clk 0:00:15.6]} 65. Ke3 {[%clk 0:00:13.7]} 65... Kd5
{[%clk 0:00:15.1]} 66. h4 {[%clk 0:00:12.6]} 66... Bb6+ {[%clk 0:00:08.4]} 67.
Ke2 {[%clk 0:00:12.5]} 67... Kc4 {[%clk 0:00:08.9]} 68. Nd2+ {[%clk 0:00:13]}
68... Kb4 {[%clk 0:00:09.3]} 69. Nxe4 {[%clk 0:00:12.9]} 69... Kxa4 {[%clk
0:00:09.8]} 70. h5 {[%clk 0:00:13.4]} 70... Kb3 {[%clk 0:00:08.5]} 71. Kd3
{[%clk 0:00:12]} 71... Bc7 {[%clk 0:00:07.2]} 72. Nd2+ {[%clk 0:00:10.7]} 72...
Kb4 {[%clk 0:00:04.8]} 73. Nc4 {[%clk 0:00:10.7]} 73... Bd8 {[%clk 0:00:04.5]}
74. Ne3 {[%clk 0:00:10.5]} 74... Bg5 {[%clk 0:00:04.1]} 75. Nd5+ {[%clk
0:00:09.3]} 75... Kb3 {[%clk 0:00:04.7]} 76. Nc3 {[%clk 0:00:09.5]} 76... Bh6
{[%clk 0:00:04.6]} 77. Nb5 {[%clk 0:00:07.3]} 77... a4 {[%clk 0:00:04.8]} 78.
Nd4+ {[%clk 0:00:07.9]} 78... Kb2 {[%clk 0:00:05.5]} 79. Nb5 {[%clk 0:00:06.8]}
79... Bg5 {[%clk 0:00:05.4]} 80. Kc4 {[%clk 0:00:06.8]} 80... Bd2 {[%clk
0:00:05.8]} 81. h6 {[%clk 0:00:06.9]} 81... Bxh6 {[%clk 0:00:02.4]} 82. Kb4
{[%clk 0:00:06.6]} 82... a3 {[%clk 0:00:03]} 83. Nxa3 {[%clk 0:00:07]} 1/2-1/2

[Event "Early-Titled-Tuesday-Blitz-June-18-2024"]
[Site "Chess.com"]
[Date "2024.06.18"]
[Round "9"]
[White "Oleg_Papayan"]
[Black "salomez"]
[Result "1/2-1/2"]
[WhiteElo "2551"]
[BlackElo "2366"]
[TimeControl "180+1"]
[EndTime "9:49:16 PDT"]
[Termination "Game drawn by 50-move rule"]

1. d4 {[%clk 0:02:58.7]} 1... Nf6 {[%clk 0:02:52]} 2. Nc3 {[%clk 0:02:59]} 2...
g6 {[%clk 0:02:52.9]} 3. e4 {[%clk 0:02:58.7]} 3... d6 {[%clk 0:02:51.7]} 4. Nf3
{[%clk 0:02:56.5]} 4... Bg7 {[%clk 0:02:51.6]} 5. Be2 {[%clk 0:02:57.1]} 5...
O-O {[%clk 0:02:50.7]} 6. O-O {[%clk 0:02:57.4]} 6... c6 {[%clk 0:02:50.8]} 7.
a4 {[%clk 0:02:57.2]} 7... a6 {[%clk 0:02:50.7]} 8. a5 {[%clk 0:02:46.1]} 8...
Nbd7 {[%clk 0:02:44.4]} 9. h3 {[%clk 0:02:45.5]} 9... Qc7 {[%clk 0:02:44.2]} 10.
Re1 {[%clk 0:02:43]} 10... e5 {[%clk 0:02:44.3]} 11. dxe5 {[%clk 0:02:41.9]}
11... dxe5 {[%clk 0:02:43.6]} 12. Bc4 {[%clk 0:02:41.7]} 12... h6 {[%clk
0:02:42.2]} 13. b3 {[%clk 0:02:36.9]} 13... Rd8 {[%clk 0:02:37.6]} 14. Qe2
{[%clk 0:02:22]} 14... Nf8 {[%clk 0:02:37.1]} 15. Be3 {[%clk 0:02:20.6]} 15...
Re8 {[%clk 0:02:31.1]} 16. Bb6 {[%clk 0:02:20.1]} 16... Qe7 {[%clk 0:02:28.9]}
17. Rad1 {[%clk 0:02:09.5]} 17... Ne6 {[%clk 0:02:18.7]} 18. Nxe5 {[%clk
0:01:59.9]} 18... Nf4 {[%clk 0:02:18.2]} 19. Bxf7+ {[%clk 0:01:59.8]} 19... Qxf7
{[%clk 0:02:09.7]} 20. Nxf7 {[%clk 0:01:45.1]} 20... Nxe2+ {[%clk 0:02:09]} 21.
Rxe2 {[%clk 0:01:46]} 21... Kxf7 {[%clk 0:02:09.5]} 22. e5 {[%clk 0:01:31.6]}
22... Nd5 {[%clk 0:02:06.2]} 23. Nxd5 {[%clk 0:01:19.7]} 23... cxd5 {[%clk
0:02:06.3]} 24. Rxd5 {[%clk 0:01:20.6]} 24... Bxe5 {[%clk 0:02:04.1]} 25. Rdxe5
{[%clk 0:01:17.7]} 25... Bf5 {[%clk 0:01:57.8]} 26. c4 {[%clk 0:01:12.6]} 26...
Rxe5 {[%clk 0:01:55.9]} 27. Rxe5 {[%clk 0:01:13.5]} 27... Re8 {[%clk 0:01:47.7]}
28. Rc5 {[%clk 0:01:09.8]} 28... Re1+ {[%clk 0:01:30]} 29. Kh2 {[%clk
0:01:09.7]} 29... Rb1 {[%clk 0:01:20.9]} 30. Rc7+ {[%clk 0:01:03]} 30... Ke6
{[%clk 0:01:20.6]} 31. Rxb7 {[%clk 0:00:53.8]} 31... Rxb3 {[%clk 0:01:19.9]} 32.
Ra7 {[%clk 0:00:53.9]} 32... Bd3 {[%clk 0:01:14.2]} 33. c5 {[%clk 0:00:39.2]}
33... Rc3 {[%clk 0:01:09.9]} 34. Ra8 {[%clk 0:00:26.6]} 34... h5 {[%clk
0:01:03]} 35. h4 {[%clk 0:00:24.7]} 35... Kd5 {[%clk 0:00:58.3]} 36. Rd8+ {[%clk
0:00:23]} 36... Kc6 {[%clk 0:00:56]} 37. Rd6+ {[%clk 0:00:22.3]} 37... Kb7
{[%clk 0:00:56.3]} 38. f3 {[%clk 0:00:20.2]} 38... Bf5 {[%clk 0:00:52.3]} 39.
Kg3 {[%clk 0:00:20.1]} 39... Rc2 {[%clk 0:00:52.4]} 40. Rf6 {[%clk 0:00:19]}
40... Bd3 {[%clk 0:00:49.9]} 41. Rd6 {[%clk 0:00:17]} 41... Bf5 {[%clk
0:00:47.5]} 42. Rd1 {[%clk 0:00:17.4]} 42... Rc4 {[%clk 0:00:45.3]} 43. Rg1
{[%clk 0:00:15.7]} 43... Kc6 {[%clk 0:00:43.9]} 44. Kf2 {[%clk 0:00:15.5]} 44...
Rxh4 {[%clk 0:00:39.2]} 45. Ke3 {[%clk 0:00:11.6]} 45... Rc4 {[%clk 0:00:37.2]}
46. Rd1 {[%clk 0:00:11.6]} 46... Rc2 {[%clk 0:00:35]} 47. g4 {[%clk 0:00:10]}
47... hxg4 {[%clk 0:00:34.6]} 48. fxg4 {[%clk 0:00:10.9]} 48... Bxg4 {[%clk
0:00:33.5]} 49. Rd6+ {[%clk 0:00:11.5]} 49... Kb7 {[%clk 0:00:33.1]} 50. Rxg6
{[%clk 0:00:12.4]} 50... Bh3 {[%clk 0:00:29.2]} 51. Rg7+ {[%clk 0:00:12.2]}
51... Kc6 {[%clk 0:00:23.5]} 52. Rh7 {[%clk 0:00:11.2]} 52... Bg2 {[%clk
0:00:22.8]} 53. Rh6+ {[%clk 0:00:10.9]} 53... Kb7 {[%clk 0:00:22.4]} 54. Kd4
{[%clk 0:00:11.3]} 54... Bf3 {[%clk 0:00:21]} 55. Ke5 {[%clk 0:00:10.6]} 55...
Bg2 {[%clk 0:00:20.6]} 56. Rh7+ {[%clk 0:00:10.2]} 56... Kc6 {[%clk 0:00:18.4]}
57. Rc7+ {[%clk 0:00:10.4]} 57... Kb5 {[%clk 0:00:18.3]} 58. Kd6 {[%clk
0:00:10.3]} 58... Rd2+ {[%clk 0:00:17.6]} 59. Ke7 {[%clk 0:00:10.6]} 59... Bc6
{[%clk 0:00:16.5]} 60. Rc8 {[%clk 0:00:07.2]} 60... Rd7+ {[%clk 0:00:16.1]} 61.
Ke6 {[%clk 0:00:07.2]} 61... Rd2 {[%clk 0:00:15.6]} 62. Rb8 {[%clk 0:00:07.1]}
62... Bd7+ {[%clk 0:00:14.9]} 63. Ke5 {[%clk 0:00:07.3]} 63... Kc6 {[%clk
0:00:14.4]} 64. Ra8 {[%clk 0:00:05.7]} 64... Kb5 {[%clk 0:00:14.2]} 65. Ra7
{[%clk 0:00:05.9]} 65... Bc6 {[%clk 0:00:13.5]} 66. Rc7 {[%clk 0:00:06.1]} 66...
Rd5+ {[%clk 0:00:12.3]} 67. Ke6 {[%clk 0:00:06.3]} 67... Rd1 {[%clk 0:00:12.1]}
68. Ke7 {[%clk 0:00:06.8]} 68... Rd2 {[%clk 0:00:11.8]} 69. Rc8 {[%clk
0:00:06.2]} 69... Rd7+ {[%clk 0:00:10.7]} 70. Kf6 {[%clk 0:00:06.2]} 70... Rd1
{[%clk 0:00:11.6]} 71. Rh8 {[%clk 0:00:06.4]} 71... Rf1+ {[%clk 0:00:11]} 72.
Ke7 {[%clk 0:00:06.7]} 72... Rd1 {[%clk 0:00:11.9]} 73. Rh4 {[%clk 0:00:05.9]}
73... Rd7+ {[%clk 0:00:11.2]} 74. Kf6 {[%clk 0:00:05.3]} 74... Rd1 {[%clk
0:00:10.9]} 75. Rh2 {[%clk 0:00:04.5]} 75... Bb7 {[%clk 0:00:08.9]} 76. Rb2+
{[%clk 0:00:04.7]} 76... Kc6 {[%clk 0:00:08.7]} 77. Ba7 {[%clk 0:00:05.2]} 77...
Kc7 {[%clk 0:00:03.2]} 78. Rb6 {[%clk 0:00:03.6]} 78... Rd2 {[%clk 0:00:02.5]}
79. Rb4 {[%clk 0:00:03]} 79... Rd1 {[%clk 0:00:02.4]} 80. Bb6+ {[%clk
0:00:03.9]} 80... Kc6 {[%clk 0:00:02.3]} 81. Ke5 {[%clk 0:00:04.8]} 81... Rd2
{[%clk 0:00:02.3]} 82. Ba7 {[%clk 0:00:04.8]} 82... Rd5+ {[%clk 0:00:02.3]} 83.
Ke4 {[%clk 0:00:04.9]} 83... Rd1 {[%clk 0:00:03.1]} 84. Ke3 {[%clk 0:00:05.3]}
84... Kc7 {[%clk 0:00:03.3]} 85. Ke2 {[%clk 0:00:04.1]} 85... Rd5 {[%clk
0:00:03.3]} 86. Rf4 {[%clk 0:00:03.7]} 86... Rd7 {[%clk 0:00:03.3]} 87. Rf6
{[%clk 0:00:03.5]} 87... Bc6 {[%clk 0:00:03.7]} 88. Ke3 {[%clk 0:00:03.2]} 88...
Rd5 {[%clk 0:00:04]} 89. Rf7+ {[%clk 0:00:02.6]} 89... Rd7 {[%clk 0:00:04.2]}
90. Rf6 {[%clk 0:00:03.1]} 90... Rd5 {[%clk 0:00:04.6]} 91. Bb6+ {[%clk
0:00:02.6]} 91... Kb7 {[%clk 0:00:04.1]} 92. Rf8 {[%clk 0:00:03.5]} 92... Rd7
{[%clk 0:00:04.3]} 93. Kf4 {[%clk 0:00:02.8]} 93... Rd4+ {[%clk 0:00:04.2]} 94.
Ke5 {[%clk 0:00:03.3]} 94... Rd5+ {[%clk 0:00:05.1]} 95. Ke6 {[%clk 0:00:03.8]}
95... Rd1 {[%clk 0:00:04.9]} 96. Rf7+ {[%clk 0:00:03.5]} 96... Kc8 {[%clk
0:00:04.5]} 97. Rf8+ {[%clk 0:00:03.7]} 97... Kb7 {[%clk 0:00:04.5]} 98. Rf7+
{[%clk 0:00:04]} 98... Kb8 {[%clk 0:00:04.9]} 99. Rc7 {[%clk 0:00:04.2]} 99...
Bb7 {[%clk 0:00:04.3]} 100. Ke5 {[%clk 0:00:03.8]} 1/2-1/2